Cogmind - Beta 14 @@@ ROGUE MODE // 2024.12.29 @ 18:36:42 Player: mehbark Result: Destroyed by as-82143 with Assembled Blade Performance ------------- Evolutions (1) 500 Regions Visited (4) 800 Robots Destroyed (13) 65 Value Destroyed (447) 447 Prototype IDs (0) 0 Alien Tech Used (0) 0 Bonus (0) 0 TOTAL SCORE: 1812 Bonus ------- None Cogmind --------- Core Integrity 0/400 Matter 28/300 Energy 65/100 System Corruption 0% Temperature Cool (95) Movement Core (300) Ox5 Location -9/Mines Parts ------- > --- POWER (2) -------- (None) > --- PROPULSION (2) --- (None) > --- UTILITY (3) ------ Medium Storage Unit Signal Interpreter > --- WEAPON (2) ------- Great Maul Great Maul > --- INVENTORY (10) --- Particle Gun Assault Cannon Welding Torch Great Maul Great Maul Great Maul Great Maul Peak State ------------ > --- POWER ------------ Ion Engine Light Nuclear Core > --- PROPULSION ------- Aluminum Leg Wheel > --- UTILITY ---------- Medium Storage Unit Signal Interpreter Terrain Scanner > --- WEAPON ----------- Assault Cannon Assault Cannon > --- INVENTORY -------- Particle Gun Assault Cannon Assault Cannon Welding Torch Great Maul Great Maul Great Maul Great Maul [Rating: 17] Favorites ----------- Power Light Ion Engine Engine Light Ion Engine Power Core Light Nuclear Core Propulsion Wheel Leg Aluminum Leg Wheel Wheel Utility Medium Storage Unit Device Terrain Scanner Storage Medium Storage Unit Processor Signal Interpreter Weapon Small Laser Energy Gun Small Laser Ballistic Cannon Assault Cannon Launcher Grenade Launcher Special Weapon Welding Torch Impact Weapon Great Maul Build | -11 -10 -10 -9 -9 ------- Run | Yrd Mat Min Mat Min Slots Evolved 2 | . . . 2 . Power 1 | . . . 1 . Propulsion . | . . . . . Utility 1 | . . . 1 . Weapon . | . . . . . Parts Attached 26 | 8 7 3 5 3 Power 3 | 1 . 1 1 . Engine 2 | 1 . . 1 . Core 1 | . . 1 . . Reactor . | . . . . . Propulsion 3 | 2 . 1 . . Treads . | . . . . . Leg 1 | . . 1 . . Wheel 2 | 2 . . . . Hover . | . . . . . Flight . | . . . . . Utility 7 | . 6 . 1 . Device 1 | . 1 . . . Storage 5 | . 5 . . . Processor 1 | . . . 1 . Hackware . | . . . . . Protection . | . . . . . Artifact . | . . . . . Weapon 13 | 5 1 1 3 3 Energy Gun 5 | 4 . 1 . . Energy Cannon . | . . . . . Ballistic Gun . | . . . . . Ballistic Cannon 3 | . . . 2 1 Launcher 1 | . 1 . . . Special Weapon 2 | 1 . . 1 . Impact Weapon 2 | . . . . 2 Slashing Weapon . | . . . . . Piercing Weapon . | . . . . . Special Melee Weapon . | . . . . . Unidentified Prototypes . | . . . . . Parts Lost 9 | . . 1 . 8 Power 2 | . . . . 2 Propulsion 2 | . . . . 2 Utility 1 | . . . . 1 Weapon 4 | . . 1 . 3 Highest Loss Streak 8 | . . 1 . 8 To Critical Strikes . | . . . . . Average Slot Usage (%) 89 | . 89 93 100 71 Engine 8 | . 14 1 11 7 Core 6 | . . 12 11 3 Leg 3 | . . 4 11 6 Wheel 20 | . 28 23 11 4 Device 7 | . . 14 11 4 Storage 14 | . 17 14 11 11 Processor 2 | . . . 11 11 Energy Gun 11 | . 15 14 2 . Ballistic Cannon 5 | . . . 17 22 Launcher 7 | . 12 7 . . Peak Build Rating 17 | 5 7 10 17 17 Average Rating 8 | 3 6 9 14 12 On Entrance 7 | . 5 7 9 17 Naked Turns . | . . . . . Heaviest Build 47 | 6 47 22 31 31 Greatest Support 20 | 20 20 20 10 10 Greatest Overweight (x) 8 | . 2 1 3 8 Average Overweight (x) . | . . . 2 3 Largest Inventory Capacity 15 | 5 15 10 10 10 Average Capacity 8 | 5 8 10 10 10 Most Carried 10 | 5 9 9 10 10 Average Carried 6 | 3 6 6 5 9 Final Capacity 10 | 5 10 10 10 10 Final Carried 10 | 4 6 7 10 7 Class Distribution -------------------- 81% | Mutant 18% | Scavenger-Mutant Dominant Class ---------------- Mutant | -10/Materials Mutant | -10/Mines Scavenger-Mutant | -9/Materials Mutant | -9/Mines Resources | -11 -10 -10 -9 -9 ----------- Run | Yrd Mat Min Mat Min Matter Collected 338 | 280 7 51 . . Remotely . | . . . . . Salvage Created 336 | 73 95 115 . 53 Parts 19 | 5 8 6 . . Haulers Intercepted . | . . . . . Recyclers Shooed . | . . . . . Parts Field Recycled . | . . . . . Retrieved Matter . | . . . . . Parts Self-Destructed . | . . . . . Prevented . | . . . . . Kills | -11 -10 -10 -9 -9 ------- Run | Yrd Mat Min Mat Min Combat Hostiles Destroyed 13 | 1 2 4 . 6 Guns 4 | 1 . 3 . . Cannons 6 | . . . . 6 AOE 3 | . 2 1 . . Classes Destroyed 6 | 2 2 . . 2 Worker 2 | . 2 . . . Builder 1 | . 1 . . . Tunneler 1 | 1 . . . . Grunt 7 | 1 2 4 . . Demolisher 2 | . . . . 2 Assembled 4 | . . . . 4 Best Kill Streak 5 | 2 5 2 . 5 Combat Bots Only 5 | 1 2 2 . 5 Max Kills in Single Turn 4 | 1 4 1 . 1 Gunslinging . | . . . . . Exploded 1 | . 1 1 . . Melee . | . . . . . Uniques/NPCs Destroyed . | . . . . . Combat | -11 -10 -10 -9 -9 -------- Run | Yrd Mat Min Mat Min Hostile Shots Fired 67 | 2 3 9 . 53 Missed 19 | 2 . 5 . 12 Damage Taken 1211 | . 44 101 . 1066 Core 412 | . 5 . . 407 Absorbed by Shields . | . . . . . Core Remaining (%) 99 | 100 . 98 . . Volleys Fired 32 | 8 2 7 . 15 Largest 2 | 2 2 2 . 2 Hottest 95 | 80 70 95 . 88 Shots Fired 59 | 16 4 10 . 29 Gun 25 | 16 2 7 . . Cannon 29 | . . . . 29 Launcher 5 | . 2 3 . . Special . | . . . . . Kinetic 29 | . . . . 29 Thermal 17 | 8 2 7 . . Explosive 5 | . 2 3 . . Electromagnetic 8 | 8 . . . . Robot Hit Streak 9 | 4 3 7 . 9 Robot Miss Streak 8 | 3 1 1 . 8 Penetration Max . | . . . . . Secondary Targets . | . . . . . Shots Hit Robots 30 | 9 3 7 . 11 Core Hits 28 | 3 7 9 . 9 Critical Kills . | . . . . . Critical Parts Destroyed . | . . . . . Critical Strikes 1 | . . . . 1 Blast 1 | . . . . 1 Melee Attacks . | . . . . . Impact . | . . . . . Slashing . | . . . . . Piercing . | . . . . . Sneak Attacks . | . . . . . Combat Hostiles . | . . . . . Follow-up Attacks . | . . . . . Damage Inflicted 962 | 113 221 301 . 327 Guns 214 | 113 12 89 . . Cannons 327 | . . . . 327 Explosions 421 | . 209 212 . . Melee . | . . . . . Ramming . | . . . . . Kinetic 327 | . . . . 327 Thermal 299 | 73 12 214 . . Explosive 296 | . 209 87 . . Electromagnetic 40 | 40 . . . . Impact . | . . . . . Slashing . | . . . . . Piercing . | . . . . . Highest Corruption . | . . . . . Average Corruption . | . . . . . Corruption Purged . | . . . . . Corruption Blocked . | . . . . . Overload Shots . | . . . . . Overflow Damage 1 | . . 1 . . Projectiles . | . . . . . Explosions 1 | . . 1 . . Melee . | . . . . . Knockbacks 2 | . . . . 2 Impact . | . . . . . Kinetic 2 | . . . . 2 Secondary . | . . . . . Self-Inflicted Damage 50 | . 11 39 . . Shots 2 | . 1 1 . . Rammed . | . . . . . Targets Rammed . | . . . . . Kicked . | . . . . . Crushed . | . . . . . Highest Temperature 169 | 108 24 169 . 165 Average Temperature 74 | 46 13 69 . 100 Received Heat Transfer 191 | . 18 33 . 140 Siege Activations . | . . . . . Robots Corrupted . | . . . . . Combat Hostiles . | . . . . . Parts Fried . | . . . . . Impact Corruptions . | . . . . . Robots Melted . | . . . . . Combat Hostiles . | . . . . . Parts Melted . | . . . . . Heat Transferred 560 | 175 25 360 . . Parts Sabotaged . | . . . . . Parts Stolen . | . . . . . Parts Stripped . | . . . . . Power Chain Reactions . | . . . . . Alert | -11 -10 -10 -9 -9 ------- Run | Yrd Mat Min Mat Min Peak Influence 196 | 25 91 196 76 75 Initial 76 | . 16 35 76 29 Average 69 | 11 26 165 76 45 Maximum Alert Level . | . . . . . Low Security (%) 100 | 100 100 100 100 100 Level 1 . | . . . . . Level 2 . | . . . . . Level 3 . | . . . . . Level 4 . | . . . . . Level 5 . | . . . . . High Security . | . . . . . Max Security . | . . . . . Squads Dispatched 1 | . . . . 1 Investigation . | . . . . . Extermination . | . . . . . Reinforcement 1 | . . . . 1 Assault . | . . . . . Garrison . | . . . . . Intercept . | . . . . . Searches Triggered . | . . . . . Construction Impeded 1 | . . . . 1 Haulers Reinforced . | . . . . . Active Scanning Responses . | . . . . . Cargo Convoy Interrupts . | . . . . . Stealth | -11 -10 -10 -9 -9 --------- Run | Yrd Mat Min Mat Min Distress Signals . | . . . . . Communications Jammed . | . . . . . Distress Signals . | . . . . . Times Spotted 19 | 1 2 4 . 12 Peak Tracking Total 7 | 1 2 2 . 7 Tactical Retreats . | . . . . . Traps | -11 -10 -10 -9 -9 ------- Run | Yrd Mat Min Mat Min Traps Triggered . | . . . . . Indirectly . | . . . . . Trap Hack Attempts . | . . . . . Triggered . | . . . . . Disarmed . | . . . . . Reprogrammed . | . . . . . Reused . | . . . . . Traps Extracted . | . . . . . Installed . | . . . . . Triggered . | . . . . . Machines | -11 -10 -10 -9 -9 ---------- Run | Yrd Mat Min Mat Min Machines Disabled 5 | . . 3 . 2 Max in Single Turn 3 | . . 3 . 1 Machines Repaired . | . . . . . Machines Dismantled . | . . . . . Machines Sabotaged . | . . . . . Overloaded Fab Kills . | . . . . . Hacking | -11 -10 -10 -9 -9 --------- Run | Yrd Mat Min Mat Min Machines Accessed . | . . . . . Terminals . | . . . . . Fabricators . | . . . . . Repair Stations . | . . . . . Recycling Units . | . . . . . Scanalyzers . | . . . . . Garrison Access . | . . . . . Total Hacks . | . . . . . Successful . | . . . . . Failed . | . . . . . Catastrophic . | . . . . . Database Lockouts . | . . . . . Manual . | . . . . . Terminals . | . . . . . Fabricators . | . . . . . Repair Stations . | . . . . . Recycling Units . | . . . . . Scanalyzers . | . . . . . Garrison Access . | . . . . . Terminal Hacks . | . . . . . Fabricator Hacks . | . . . . . Repair Station Hacks . | . . . . . Recycling Unit Hacks . | . . . . . Scanalyzer . | . . . . . Garrison Access Hacks . | . . . . . Unauthorized Hacks . | . . . . . Terminals . | . . . . . Fabricators . | . . . . . Repair Stations . | . . . . . Recycling Units . | . . . . . Scanalyzers . | . . . . . Garrison Access . | . . . . . Data Cores Recovered . | . . . . . Used . | . . . . . Hacking Detections . | . . . . . Full Trace Events . | . . . . . Feedback Events . | . . . . . Feedback Blocked . | . . . . . Robot Schematics Acquired . | . . . . . Robots Built . | . . . . . Authchips . | . . . . . Time . | . . . . . Total Robot Build Rating . | . . . . . Part Schematics Acquired . | . . . . . Parts Built . | . . . . . Authchips . | . . . . . Time . | . . . . . Total Part Build Rating . | . . . . . Parts Repaired . | . . . . . Time . | . . . . . Parts Recycled . | . . . . . Recycled Matter . | . . . . . Retrieved Matter . | . . . . . Retrieved Components . | . . . . . Parts Scanalyzed . | . . . . . Part Schematics Acquired . | . . . . . Parts Damaged . | . . . . . Bothacking | -11 -10 -10 -9 -9 ------------ Run | Yrd Mat Min Mat Min Used RIF Installer . | . . . . . Robots Hacked . | . . . . . Non-combat . | . . . . . Combat . | . . . . . Robot Hacks Applied . | . . . . . Relay Couplers Released . | . . . . . Fabnet Peak Effective % . | . . . . . Robots Rewired . | . . . . . Allies Hacked . | . . . . . Hacks Repelled . | . . . . . Allies | -11 -10 -10 -9 -9 -------- Run | Yrd Mat Min Mat Min Total Allies . | . . . . . Largest Group . | . . . . . Highest-Rated Group . | . . . . . Highest-Rated Ally . | . . . . . Total Orders . | . . . . . Ally Attacks . | . . . . . Total Damage . | . . . . . Kills . | . . . . . Allies Corrupted . | . . . . . Allies Melted . | . . . . . Intel | -11 -10 -10 -9 -9 ------- Run | Yrd Mat Min Mat Min Robot Analysis Total . | . . . . . Derelict Logs Recovered . | . . . . . Drone Launches . | . . . . . Drone Recoveries . | . . . . . Exploration | -11 -10 -10 -9 -9 ------------- Run | Yrd Mat Min Mat Min Turns Passed 616 | 144 169 179 51 73 Spaces Moved 475 | 132 163 134 28 18 Core 28 | 26 . . . 2 Treads . | . . . . . Legs 31 | . . 31 . . Wheels 416 | 106 163 103 28 16 Hover . | . . . . . Flight . | . . . . . Fastest Speed 50 | 50 80 80 110 125 Average Speed 94 | 74 83 114 122 147 Slowest Speed 450 | 80 110 190 125 450 Overloaded Moves . | . . . . . Propulsion Burnouts . | . . . . . Robots Hopped . | . . . . . Cave-ins Triggered . | . . . . . Exploration Rate (%) 14 | 5 26 25 3 14 Regions Visited 4 Branch Regions 2 Pre-discovered Areas . | . . . . . Known Exits Taken 1 | . . . 1 . Unknown Exits Taken 3 | 1 1 1 . . Scrap Searched . | . . . . . Spaces Dug . | . . . . . Terrain Destroyed 50 | . 11 34 . 5 Melee . | . . . . . Projectile 5 | . . . . 5 AOE 45 | . 11 34 . . Terrain Rammed . | . . . . . Walls Destroyed . | . . . . . Machines Disabled . | . . . . . Actions | -11 -10 -10 -9 -9 --------- Run | Yrd Mat Min Mat Min Total 586 | 160 194 150 46 36 Wait 2 | 2 . . . . Move 471 | 131 162 133 27 18 Hop . | . . . . . Pick Up 38 | 10 14 4 10 . Fast Attach . | . . . . . Attach 13 | 5 2 . 3 3 Detach . | . . . . . Swap 13 | 3 5 3 2 . Drop 17 | 1 9 3 4 . Fire 32 | 8 2 7 . 15 Melee . | . . . . . Ram . | . . . . . Kick . | . . . . . Crush . | . . . . . Escape Stasis . | . . . . . Rewire . | . . . . . Trap . | . . . . . Miscellaneous . | . . . . . Route ------- -11/Scrapyard -10/Materials -10/Mines -9/Materials -9/Mines History --------- Turn | Location | Event 2 | -11/Scrapyard | Met Revision 17 67 | -11/Scrapyard | Discovered new exit (range 8) 145 | -11/Scrapyard | Entered Materials 299 | -10/Materials | Discovered new exit (range 6) 314 | -10/Materials | Entered Mines 328 | -10/Mines | Build established: Mutant 411 | -10/Mines | Discovered new exit (range 5) 493 | -10/Mines | Entered Materials 493 | -9/Materials | Evolved 2 slots: Power x1, Utility x1 499 | -9/Materials | Discovered new exit (range 16) 542 | -9/Materials | Identified exit to Mines 544 | -9/Materials | Entered Mines 545 | -9/Mines | Assembled infested the area 550 | -9/Mines | Met a Derelict bent on vengeance 591 | -9/Mines | Core integrity fell below 50% 617 | -9/Mines | Core integrity fell below 20% 617 | -9/Mines | Destroyed by as-82143 with Assembled Blade Last Messages --------------- as-84925 destroyed. as-55937 destroyed. The unstable cave ceiling collapses. as-05151 destroyed. The unstable cave ceiling collapses. as-38871 destroyed. Assault Cannon destroyed. The unstable cave ceiling collapses. Assault Cannon destroyed. Bump into an enemy to attack with the active melee weapon. Even while active, melee weapons do not fire together with ranged weapons in the same volley. Only a single melee weapon may be active at a time, Great Maul automatically deactivated. (Secondary inactive melee weapons have a chance to conduct follow-up attacks, see the manual.) U-05 Engineer lays Concrete. [Achievement: First Step to Greatness] Map ----- +----------------------------------------------------+ | ??????????????????????????????????????????????? | | ??????????????????????????????????????????????? | | ??????????????????????????????????????????????? | | ??????????????????????????????????????????????? | | ??????????????????????????????????????????????? | | ??????????????????????????????????????????????? | | ??????????????????? ??????????????????????????? | | ??????????????????? ?????????????????????????? | | ???????????????????? ?????????????????????????? | | ?????????###???????? ?????????????????????????? | | ????????? #??#???? #????????????????????????? | | ?????????# #??????? ####????????????????????? | | ?????????# #??????? ####?????????????????? | | ?????????# ???? ?? ####??????????????? | | ???????### #??????? a ???????????????? | | ???##### #?#?????# #????????????????? | | ???# ##??????# #????????????????? | | ???# #???#### #????????????????? | | ????????# ##### #?????????????????? | | ????????## aa #??????????????????? | | ?????????# a ;#??????????????????? | | ?????????# ####%a% #??????????????????? | | ????????# #??# % % #??? ??????????????? | | ??????# #??# % #?#????????????????? | | ??????# #??# aa #??????????????????? | | ??????## ##??## # @ ## #?????????????????? | | ???????### ##???### %###?????????????????? | | ?????????###??????# % #?????????????????? | | ??????????????????# %% u #?????????????????? | | ??????????????????# %% ;#????????????????? | | ??????????????????# " " ##????????????????? | | ??????????????????# "" " " #?????????????????? | | ??????????????????# """ " " ?????????????????? | | ??????????????????# r ##????????????????? | | ??????????????????##?#####r##?????????????????? | | ?????????????????????????? #??????????????????? | | ?????????????????????????? ??????????????????? | | ??????????????????????#???? ??????????????????? | | ????????????????????????????#?????????????????? | | ??????????????????????????????????????????????? | | ??????????????????????????????????????????????? | | ??????????????????????????????????????????????? | | ??????????????????????????????????????????????? | | ??????????????????????????????????????????????? | | ??????????????????????????????????????????????? | | ??????????????????????????????????????????????? | | ??????????????????????????????????????????????? | | ??????????????????????????????????????????????? | | ??????????????????????????????????????????????? | | ??????????????????????????????????????????????? | +----------------------------------------------------+ Best States ------------- Heat Dissipation 28 Energy Generation 19 Energy Capacity 310 Matter Stores 300 Matter Capacity 300 Sight Range 16 Terrain Scan Range 14 Terrain Scan Density 10 Evasion (%) 50 Item Schematics ----------------- None Robot Schematics ------------------ None Fabricated ------------ Nothing Alien Tech Used ----------------- None Achievements -------------- First Step to Greatness Storm Trooper Challenges ------------ None Game ------ Seed CloakResetAirjet Manual? 0 Play Time 00:19:52 Cumulative 0.3 hours Start 2024.12.29 @ 18:16:39 End 2024.12.29 @ 18:36:42 Sessions 1 Manual Loads 0 Difficulty Rogue Special Mode None Game No. 1 Rogue 1 Adventurer 0 Explorer 0 Win Type - Total 0 Types 0/0/0/0/0/0/0/0/0 Lore% 0 Gallery% 1 Achievement% 0 Wizard Run 0 Options --------- Layout 1 ASCII 0 Keyboard 0 Movement Vi Keybinds 0 Fullscreen 1 Font 24/Smallcaps Map View 50x35 Zoom Use 0% Tactical HUD 0 Map Filters NONE Filters NONE Steam 1 RUN: 3af1a61b-3e8e-4300-944e-ef6c2a445a0f